[Event "WSTCC-65 2024"]
[Site "Krakow"]
[Date "2024.07.05"]
[Round "4.24"]
[White "Murray, Jim G."]
[Black "Tsifanskaya, Ludmila A"]
[Result "1/2-1/2"]
[ECO "E10"]
[WhiteElo "1884"]
[BlackElo "1970"]
[Annotator "NA RC"]
[PlyCount "79"]
[EventDate "2024.07.01"]
[EventType "team-tourn"]
[EventCountry "POL"]
[SourceTitle "playchess.com"]
[Source "ChessBase"]
[SourceQuality "1"]
[TimeControl "40/5400+30:1800+30"]

1. d4 {[%emt 0:00:06]} Nf6 {[%emt 0:00:31]} 2. c4 {[%emt 0:00:07]} e6 {[%emt 0:00:11]} 3. Nf3 {[%emt 0:00:06]} d5 {[%emt 0:00:05]} 4. g3 {[%emt 0:00:50]} g6 {[%emt 0:03:08]} 5. Bg2 {[%emt 0:01:53]} Bg7 {[%emt 0:00:01]} 6. O-O {[%emt 0:00:32]} O-O {[%emt 0:00:18]} 7. Nc3 {[%emt 0:01:19]} dxc4 {[%emt 0:07:34]} 8. Qa4 {[%emt 0:05:08]} Bd7 {[%emt 0:09:19]} 9. Qxc4 {[%emt 0:00:53]} Bc6 {[%emt 0:00:00]} 10. Bg5 {[%emt 0:07:06]} h6 {[%emt 0:03:02]} 11. Bf4 {[%emt 0:00:46]} g5 {[%emt 0:03:26]} 12. Be5 {[%emt 0:04:41]} Nbd7 {[%emt 0:01:29]} 13. Rfd1 {[%emt 0:00:33]} Nb6 {[%emt 0:02:22]} 14. Qd3 {[%emt 0:01:52]} Nfd7 {[%emt 0:04:20]} 15. Bxg7 {[%emt 0:02:32]} Kxg7 {[%emt 0:00:02]} 16. e4 {[%emt 0:03:50]} Nf6 {[%emt 0:02:27]} 17. Ne5 {[%emt 0:05:21]} Qe7 {[%emt 0:02:55]} 18. Nxc6 {[%emt 0:07:05]} bxc6 {[%emt 0:00:02]} 19. e5 {[%emt 0:01:41]} Nfd5 {[%emt 0:00:22]} 20. Ne4 {[%emt 0:00:46]} Rad8 {[%emt 0:04:35]} 21. a3 {[%emt 0:02:28]} f5 {[%emt 0:06:21]} 22. exf6+ {[%emt 0:04:53]} Nxf6 {[%emt 0:00:02]} 23. Qe2 {[%emt 0:01:38]} Nxe4 {[%emt 0:00:57]} 24. Bxe4 {[%emt 0:05:50]} Qf6 {[%emt 0:03:33]} 25. Rac1 {[%emt 0:07:29]} Rd6 {[%emt 0:10:32]} 26. Bxc6 {[%emt 0:05:13]} Rxd4 {[%emt 0:00:59]} 27. Rxd4 {[%emt 0:00:29]} Qxd4 {[%emt 0:00:02]} 28. Be4 {[%emt 0:01:12]} Rf7 {[%emt 0:03:21]} 29. Bb1 {[%emt 0:01:08]} Qf6 {[%emt 0:01:38]} 30. Rc6 {[%emt 0:03:14]} Nd5 {[%emt 0:06:30]} 31. Rxe6 {[%emt 0:01:34]} Re7 {[%emt 0:01:29]} 32. Rxe7+ {[%emt 0:02:51]} Nxe7 {[%emt 0:01:15]} 33. Qc2 {[%emt 0:03:39]} c6 {[%emt 0:00:27]} 34. Qe4 {[%emt 0:03:46]} Kf8 {[%emt 0:03:29]} 35. Qb4 {[%emt 0:02:11]} Qe5 {[%emt 0:03:05]} 36. Ba2 {[%emt 0:02:50]} a5 {[%emt 0:00:28]} 37. Qc4 {[%emt 0:01:36]} Ke8 {[%emt 0:01:07]} 38. Qc2 {[%emt 0:05:54]} Kd7 {[%emt 0:02:16]} 39. Qd2+ {[%emt 0:00:36]} Kc7 {[%emt 0:00:21]} 40. Kg2 {[%emt 0:03:45]} 1/2-1/2